bitfinex-derivatives/quotes_BTCF0:USTF0_20241023
["timestamp","ask_amount","ask_price","bid_price","bid_amount"]
[1729683393960,0.33,66584.0,66577.0,0.04482523]
[1729683394264,0.33,66584.0,66574.0,0.04482523]
[1729683394265,0.11,66578.0,66574.0,0.04482523]
[1729683394567,0.33,66575.0,66569.0,0.04482523]
[1729683394767,0.22,66570.0,66567.0,0.0321]
[1729683394969,0.22,66570.0,66569.0,0.04481726]
[1729683395268,0.22,66570.0,66567.0,0.07691778]
[1729683395466,0.22,66570.0,66567.0,0.0321]
[1729683398060,0.07516,66568.0,66567.0,0.0321]
[1729683404059,0.07516,66568.0,66563.0,0.0332]
[1729683404261,0.405164,66564.0,66563.0,0.0332]
[1729683404469,0.393604,66564.0,66563.0,0.0332]
[1729683405269,0.075169,66560.0,66559.0,0.0326]
[1729683405470,0.295169,66560.0,66559.0,0.0326]
[1729683406659,0.405169,66560.0,66559.0,0.0326]
[1729683407165,0.07517,66559.0,66558.0,0.0302]
[1729683410064,0.075171,66558.0,66557.0,0.0331]
[1729683410669,0.075181,66549.0,66548.0,0.02647017]
[1729683410868,0.075185,66545.0,66544.0,0.07621778]
[1729683411064,0.185185,66545.0,66544.0,0.0314]
[1729683411260,0.295185,66545.0,66544.0,0.0314]
[1729683411465,0.185185,66545.0,66544.0,0.0314]
[1729683415969,0.395185,66545.0,66544.0,0.0314]
[1729683421171,0.285185,66545.0,66544.0,0.0314]
[1729683421370,0.0752,66532.0,66531.0,0.075201]
[1729683421574,0.1852,66532.0,66531.0,0.137901]
[1729683421873,0.1852,66532.0,66531.0,0.588821]
[1729683422271,0.1852,66532.0,66531.0,0.51362]
[1729683424480,0.1852,66532.0,66531.0,0.0627]
[1729683424774,0.075201,66531.0,66530.0,0.02732754]
[1729683424967,0.11,66532.0,66529.0,0.04487169]
[1729683425168,0.185202,66530.0,66529.0,0.07491415]
[1729683425478,0.075204,66529.0,66528.0,0.075205]
[1729683425776,0.11,66530.0,66528.0,0.17130652]
[1729683425974,0.185202,66530.0,66529.0,0.09610152]
[1729683428077,0.185202,66530.0,66529.0,0.17066707]
[1729683428479,0.185202,66530.0,66529.0,0.07479497]
[1729683429086,0.185202,66530.0,66529.0,0.17067147]
[1729683429388,0.185202,66530.0,66529.0,0.07479497]
[1729683429589,0.075204,66529.0,66528.0,0.07479497]
[1729683429789,0.075204,66529.0,66528.0,0.09592417]
[1729683432291,0.075204,66529.0,66528.0,0.17112917]
[1729683432680,0.185204,66529.0,66528.0,0.17112917]
[1729683433391,0.185204,66529.0,66528.0,0.075205]
[1729683435494,0.075205,66528.0,66527.0,0.05902104]
[1729683436592,0.075205,66528.0,66527.0,0.13422704]
[1729683440281,0.075205,66528.0,66527.0,0.34460736]
[1729683440690,0.075205,66528.0,66527.0,0.23020514]
[1729683442594,0.075205,66528.0,66527.0,0.12269914]
[1729683442790,0.075205,66528.0,66527.0,0.23722876]
[1729683443486,0.185205,66528.0,66527.0,0.23722876]
[1729683443898,0.075205,66528.0,66527.0,0.12269914]
[1729683445492,0.075205,66528.0,66527.0,0.21274677]
[1729683446306,0.075205,66528.0,66527.0,0.12269914]
[1729683449603,0.075205,66528.0,66527.0,0.21274677]
[1729683449904,0.075205,66528.0,66527.0,0.12269914]
[1729683450698,0.185205,66528.0,66527.0,0.21274677]
[1729683451494,0.185205,66528.0,66527.0,0.12269914]
[1729683453691,0.075205,66528.0,66527.0,0.12269914]
[1729683455511,0.075205,66528.0,66527.0,0.02672104]
[1729683455697,0.075205,66528.0,66520.0,0.0628]
[1729683456007,0.185213,66521.0,66520.0,0.0628]
[1729683457102,0.185213,66521.0,66520.0,0.138014]
[1729683457299,0.075213,66521.0,66520.0,0.138014]
[1729683457499,0.185213,66521.0,66520.0,0.138014]
[1729683458505,0.185213,66521.0,66520.0,0.16555782]
[1729683463510,0.11,66521.0,66520.0,0.48165367]
[1729683463710,0.11,66521.0,66520.0,0.3767373]
[1729683463911,0.185213,66521.0,66520.0,0.3767373]
[1729683464713,0.185213,66521.0,66520.0,0.48165367]
[1729683464916,0.185213,66521.0,66520.0,0.3767373]
[1729683465211,0.185213,66521.0,66520.0,0.50966277]
[1729683465712,0.185213,66521.0,66520.0,0.61483479]
[1729683466113,0.185213,66521.0,66520.0,0.50966277]
[1729683466414,0.185213,66521.0,66520.0,0.61483359]
[1729683467817,0.185213,66521.0,66520.0,0.48190812]
[1729683468314,0.185213,66521.0,66520.0,0.3767373]
[1729683469009,0.0752,66533.0,66520.0,0.77121649]
[1729683469209,0.185208,66527.0,66526.0,0.075206]
[1729683469415,0.185208,66527.0,66526.0,0.41942708]
[1729683470516,0.27193748,66527.0,66526.0,0.075206]
[1729683472415,0.225342,66527.0,66526.0,0.075206]
[1729683473919,0.22537674,66527.0,66526.0,0.075206]
[1729683478413,0.185208,66527.0,66526.0,0.2847108]
[1729683478622,0.075208,66527.0,66526.0,0.2847108]
[1729683485437,0.075208,66527.0,66526.0,0.26088787]
[1729683486431,0.075208,66527.0,66526.0,0.26088835]
[1729683488832,0.07545713,66527.0,66526.0,0.2609566]
[1729683489030,0.07545713,66527.0,66526.0,0.17085293]
[1729683490543,0.07545713,66527.0,66526.0,0.28479273]
[1729683490744,0.00056495,66528.0,66526.0,0.73570308]
[1729683490956,0.00056495,66528.0,66527.0,0.73570308]
[1729683491243,0.00085345,66529.0,66528.0,0.075205]
[1729683491544,0.00085345,66529.0,66528.0,0.73513953]
[1729683491747,0.00085345,66529.0,66528.0,0.76583953]
[1729683493645,0.00085345,66529.0,66528.0,0.556825]
[1729683494445,0.08855626,66529.0,66528.0,0.556825]
[1729683494856,0.08855626,66529.0,66528.0,0.58356594]
[1729683496141,0.08855626,66529.0,66528.0,0.13264594]
[1729683500549,0.00085345,66529.0,66528.0,0.34137346]
[1729683505551,0.00085345,66529.0,66528.0,0.32304137]
[1729683505753,0.00085345,66529.0,66528.0,0.34125792]
[1729683506851,0.00085345,66529.0,66528.0,0.2278173]
[1729683508553,0.00085345,66529.0,66528.0,0.13264594]
[1729683511951,0.04137589,66529.0,66528.0,0.13264594]
[1729683512852,0.04137589,66529.0,66528.0,0.10194594]
[1729683513052,0.00085345,66529.0,66528.0,0.10194594]
[1729683515458,0.00085345,66529.0,66528.0,0.31106783]
[1729683517365,0.00116752,66530.0,66529.0,0.075204]
[1729683517561,0.00116752,66530.0,66529.0,0.41631454]
[1729683518060,0.00116752,66530.0,66529.0,0.38937479]
[1729683518362,0.00116752,66530.0,66529.0,0.5215423]
[1729683518968,0.00116752,66530.0,66529.0,0.4164934]
[1729683519672,0.07636952,66530.0,66529.0,0.4164934]
[1729683520368,0.07636952,66530.0,66529.0,0.52158501]
[1729683520565,0.07636952,66530.0,66529.0,0.3894175]
[1729683520873,0.07636952,66530.0,66529.0,0.28432589]
[1729683521675,0.07636952,66530.0,66529.0,0.3894175]
[1729683521864,0.07636952,66530.0,66529.0,0.28432589]
[1729683522266,0.07636952,66530.0,66529.0,0.41639609]
[1729683523562,0.1168608,66530.0,66529.0,0.075204]
[1729683525775,0.11693094,66530.0,66529.0,0.075204]
[1729683527068,0.04172894,66530.0,66529.0,0.075204]
[1729683529071,0.11693094,66530.0,66529.0,0.075204]
[1729683529379,0.11689096,66530.0,66529.0,0.075204]
[1729683530664,0.07636952,66530.0,66529.0,0.41652911]
[1729683530869,0.07636952,66530.0,66529.0,0.28443096]
[1729683531975,0.07636952,66530.0,66529.0,0.4164896]
[1729683532979,0.07636952,66530.0,66529.0,0.28443096]
[1729683534075,0.07636952,66530.0,66529.0,0.28436333]
[1729683535082,0.07636952,66530.0,66529.0,0.18892309]
[1729683535785,0.07636952,66530.0,66529.0,0.28432808]
[1729683536668,0.07636952,66530.0,66529.0,0.17060899]
[1729683536984,0.07636952,66530.0,66529.0,0.52153787]
[1729683537380,1.12728952,66530.0,66529.0,6.6e-07]
[1729683537577,1.12728952,66530.0,66523.0,6.9e-07]
[1729683537578,0.075209,66524.0,66523.0,6.9e-07]
[1729683537779,0.07521,66523.0,66519.0,2.6e-07]
[1729683537974,0.09824,66522.0,66495.0,0.12019343]
[1729683538179,0.075234,66503.0,66496.0,0.23971335]
[1729683538484,0.09824,66508.0,66497.0,0.11092464]
[1729683538680,0.075232,66505.0,66498.0,0.18578693]
[1729683538879,0.075232,66505.0,66498.0,0.075238]
[1729683539282,0.09824,66509.0,66496.0,0.066]
[1729683540686,0.075229,66507.0,66496.0,0.066]
[1729683540887,0.09824,66506.0,66496.0,0.066]
[1729683541393,0.07524,66497.0,66496.0,0.066]
[1729683543387,0.075249,66489.0,66486.0,0.107051]
[1729683543582,0.075251,66488.0,66487.0,0.0646]
[1729683545972,0.075251,66488.0,66487.0,0.139851]
[1729683546177,0.09828,66496.0,66491.0,0.075246]
[1729683546375,0.075247,66491.0,66489.0,0.075249]
[1729683546582,0.075248,66490.0,66489.0,0.075249]
[1729683547880,0.09828,66500.0,66487.0,0.0646]
[1729683548189,0.07525,66488.0,66487.0,0.0646]
[1729683549775,0.07525,66488.0,66487.0,0.0313]
[1729683551093,0.0183,66495.0,66476.0,0.0306]
[1729683551094,0.075251,66487.0,66483.0,0.02641874]
[1729683551291,0.09828,66491.0,66478.0,0.07526]
[1729683551495,0.09828,66491.0,66477.0,0.0635]
[1729683551691,0.075261,66478.0,66477.0,0.0635]
[1729683551989,0.075261,66478.0,66477.0,0.033]
[1729683552192,0.075259,66482.0,66481.0,0.075258]
[1729683553387,0.075259,66482.0,66477.0,0.033]
[1729683553388,0.09828,66487.0,66477.0,0.033]
[1729683553603,0.075261,66481.0,66480.0,0.075259]
[1729683554180,0.075261,66481.0,66480.0,0.072759]
[1729683556897,0.075263,66477.0,66476.0,0.075261]
[1729683557196,0.075261,66481.0,66476.0,0.075261]
[1729683557401,0.075262,66477.0,66476.0,0.075261]
[1729683559701,0.07527,66471.0,66470.0,0.075267]
[1729683560085,0.07527,66474.0,66473.0,0.075266]
[1729683564190,0.02669109,66489.0,66473.0,0.075266]
[1729683564191,0.075241,66497.0,66473.0,0.45132]
[1729683564508,0.075241,66497.0,66487.0,0.07525]
[1729683564509,0.075251,66488.0,66487.0,0.07525]
[1729683565001,0.075255,66484.0,66483.0,0.075255]
[1729683565795,0.07524,66497.0,66482.0,0.0313]
[1729683565998,0.075252,66486.0,66485.0,0.075253]
[1729683567207,0.075252,66486.0,66485.0,0.16773456]
[1729683567801,0.075252,66486.0,66485.0,0.24272353]
[1729683567991,0.075252,66486.0,66485.0,0.16773456]
[1729683572106,0.075252,66486.0,66485.0,0.27815674]
[1729683572399,0.075249,66490.0,66489.0,0.075248]
[1729683572602,0.075244,66493.0,66492.0,0.075243]
[1729683572902,0.075243,66496.0,66495.0,0.07524]
[1729683573197,0.075243,66496.0,66495.0,0.16787374]
[1729683573589,0.075243,66496.0,66495.0,0.12513374]
[1729683575790,0.075243,66496.0,66495.0,0.12474957]
[1729683583002,0.075243,66496.0,66495.0,0.0325]
[1729683588922,0.075237,66502.0,66501.0,0.075235]
[1729683589112,0.075237,66502.0,66496.0,0.0323]
[1729683589424,0.07524,66499.0,66498.0,0.075238]
[1729683590924,0.07525,66488.0,66487.0,0.00225598]
[1729683591221,0.07525,66488.0,66487.0,0.09435864]
[1729683591920,0.07525,66488.0,66487.0,0.16960964]
[1729683593318,0.07525,66488.0,66487.0,0.28005139]
[1729683593515,0.07525,66488.0,66487.0,0.20480039]
[1729683595620,0.07525,66488.0,66487.0,0.09435864]
[1729683596124,0.07525,66488.0,66487.0,0.20482137]
[1729683597025,0.07525,66488.0,66487.0,0.09435864]
[1729683598113,0.07525,66488.0,66487.0,0.00225598]
[1729683606032,0.07525,66488.0,66487.0,0.09498553]
[1729683606420,0.07525,66488.0,66487.0,0.2055141]
[1729683610626,0.07525,66488.0,66487.0,0.09498553]
[1729683611941,0.07525,66488.0,66487.0,0.20555455]
[1729683612128,0.075249,66491.0,66487.0,0.54618553]
[1729683612329,0.075222,66513.0,66490.0,0.075247]
[1729683612330,0.10084,66506.0,66490.0,0.075247]
[1729683612537,0.07523,66506.0,66505.0,0.07512576]
[1729683612839,0.07523,66506.0,66505.0,0.09232961]
[1729683613229,0.075232,66504.0,66503.0,0.0306]
[1729683613663,0.075237,66499.0,66496.0,0.06008845]
[1729683613931,0.075237,66499.0,66490.0,0.06010625]
[1729683614131,0.075248,66490.0,66489.0,0.06010625]
[1729683615228,0.075243,66495.0,66488.0,0.0306]
[1729683615545,0.075243,66495.0,66488.0,0.1057106]
[1729683615546,0.075249,66489.0,66488.0,0.1057106]
[1729683615732,0.075249,66489.0,66488.0,0.0306]
[1729683615934,0.075249,66489.0,66488.0,0.19852181]
[1729683616543,0.075249,66489.0,66488.0,0.12341121]
[1729683616748,0.075249,66489.0,66488.0,0.19854083]
[1729683617339,0.075249,66489.0,66488.0,0.0306]
[1729683621158,0.075249,66489.0,66488.0,0.12373557]
[1729683621355,0.075249,66489.0,66488.0,0.21396372]
[1729683622456,0.526449,66489.0,66484.0,0.08356372]
[1729683622646,0.075257,66482.0,66481.0,0.0054]
[1729683627544,0.0183,66485.0,66467.0,0.075273]
[1729683627545,0.075267,66473.0,66472.0,0.07515755]
[1729683627751,0.075271,66469.0,66468.0,0.07515755]
[1729683627949,0.09976,66473.0,66467.0,0.10615755]
[1729683628148,0.075273,66468.0,66467.0,0.10615755]
[1729683628746,0.075273,66468.0,66455.0,0.10517607]
[1729683628747,0.075275,66466.0,66463.0,0.07515755]
[1729683629052,0.075275,66466.0,66442.0,0.10517607]
[1729683629053,0.075283,66459.0,66458.0,0.07515755]
[1729683629357,0.075284,66458.0,66455.0,0.07515755]
[1729683629555,0.075287,66455.0,66454.0,0.07515755]
[1729683630054,0.075284,66458.0,66449.0,0.075294]
[1729683630359,0.075284,66458.0,66455.0,0.07502872]
[1729683630557,0.075288,66454.0,66452.0,0.07502872]
[1729683630768,0.07529,66453.0,66452.0,0.07502872]
[1729683631060,0.075292,66451.0,66450.0,0.075293]
[1729683631862,0.075296,66448.0,66447.0,0.075295]
[1729683632060,0.075287,66455.0,66449.0,0.075294]
[1729683632251,0.075286,66456.0,66451.0,0.07494057]
[1729683632960,0.075286,66456.0,66450.0,0.075293]
[1729683632961,0.075292,66451.0,66450.0,0.15023357]
[1729683633261,0.075292,66451.0,66450.0,0.07494057]
[1729683633461,0.075296,66447.0,66445.0,0.00225736]
[1729683633665,0.075298,66446.0,66445.0,0.00225736]
[1729683635249,0.075298,66446.0,66438.0,0.0302]
[1729683635250,0.075305,66439.0,66438.0,0.0302]
[1729683635465,0.075305,66439.0,66434.0,0.07494057]
[1729683635663,0.075312,66433.0,66432.0,0.15011376]
[1729683635856,0.075312,66433.0,66432.0,0.075313]
[1729683636197,0.075315,66431.0,66430.0,0.07480076]
[1729683636353,0.075315,66431.0,66430.0,0.075316]
[1729683637750,0.075298,66446.0,66431.0,0.075314]
[1729683637957,0.075298,66446.0,66426.0,0.07480076]
[1729683637958,0.0183,66464.0,66429.0,0.07480076]
[1729683638247,0.075304,66442.0,66441.0,0.075301]
[1729683640059,0.075304,66442.0,66434.0,0.07531]
[1729683640060,0.075311,66435.0,66434.0,0.07531]
[1729683640265,0.075311,66435.0,66423.0,0.02666727]
[1729683640266,0.075312,66433.0,66432.0,0.0313]
[1729683640558,0.075325,66422.0,66421.0,0.00225819]
[1729683641964,0.075329,66418.0,66417.0,0.0313]
[1729683642270,0.075329,66418.0,66417.0,0.10663]
[1729683642460,0.0998,66423.0,66419.0,0.075327]
[1729683642765,0.0998,66425.0,66419.0,0.075327]
[1729683643152,0.0998,66425.0,66417.0,0.0313]
[1729683643364,0.075328,66419.0,66417.0,0.10663]
[1729683643565,0.075316,66430.0,66417.0,0.0313]
[1729683643860,0.075324,66423.0,66417.0,0.0313]
[1729683644379,0.075324,66423.0,66422.0,0.075325]
[1729683644669,0.075306,66439.0,66417.0,0.0313]
[1729683644857,0.075306,66439.0,66419.0,0.075328]
[1729683644858,0.075316,66430.0,66419.0,0.075328]
[1729683645052,0.075296,66448.0,66423.0,0.075323]
[1729683645254,0.075281,66461.0,66435.0,0.075309]
[1729683645255,0.075309,66436.0,66435.0,0.075309]
[1729683645456,0.69028,66465.0,66447.0,0.075295]
[1729683645663,0.69028,66465.0,66448.0,0.0329]
[1729683645664,0.68932,66465.0,66448.0,0.0329]
[1729683645859,0.075279,66463.0,66448.0,0.0329]
[1729683646059,0.075278,66462.0,66448.0,0.0329]
[1729683646262,0.6904,66465.0,66452.0,0.075288]
[1729683646263,0.075289,66453.0,66452.0,0.075288]
[1729683646569,0.075279,66461.0,66449.0,0.075292]
[1729683646868,0.075277,66463.0,66450.0,0.07529]
[1729683647059,0.68932,66465.0,66448.0,0.0329]
[1729683647257,0.075291,66451.0,66448.0,0.0329]
[1729683647458,0.075281,66459.0,66449.0,0.075292]
[1729683647764,0.68932,66465.0,66451.0,0.07529]
[1729683647964,0.10248,66464.0,66448.0,0.0329]
[1729683648269,0.075288,66453.0,66450.0,0.07529]
[1729683648567,0.10248,66464.0,66448.0,0.0329]
[1729683648763,0.075289,66453.0,66449.0,0.075291]
[1729683648964,0.075289,66453.0,66448.0,0.0329]
[1729683649266,0.075279,66461.0,66448.0,0.0329]
[1729683649473,0.075279,66461.0,66450.0,0.07529]
[1729683649769,0.07529,66451.0,66450.0,0.07529]
[1729683650071,0.075279,66461.0,66448.0,0.0329]
[1729683650256,0.075311,66433.0,66431.0,0.15011276]
[1729683650457,0.10248,66446.0,66428.0,0.0318]
[1729683650861,0.075309,66434.0,66431.0,0.075312]
[1729683651067,0.075309,66434.0,66428.0,0.0318]
[1729683651256,0.075311,66433.0,66430.0,0.075313]
[1729683651464,0.075311,66433.0,66428.0,0.0318]
[1729683651661,0.075311,66433.0,66432.0,0.075311]
[1729683651857,0.10248,66446.0,66428.0,0.0318]
[1729683651858,0.075315,66429.0,66428.0,0.0318]
[1729683652064,0.075315,66429.0,66428.0,0.107116]
[1729683652263,0.075315,66429.0,66428.0,0.0318]
[1729683656469,0.075315,66429.0,66425.0,0.075319]
[1729683656673,0.075315,66429.0,66422.0,0.0316]
[1729683656674,0.075322,66423.0,66422.0,0.0316]
[1729683657274,0.075322,66423.0,66422.0,0.106923]
[1729683657664,0.075322,66423.0,66422.0,0.0316]
[1729683658565,0.075322,66423.0,66418.0,0.075326]
[1729683658566,0.075326,66419.0,66418.0,0.075326]
[1729683664481,0.075311,66433.0,66423.0,0.075319]
[1729683664777,0.075309,66434.0,66433.0,0.075307]
[1729683665365,0.075309,66434.0,66433.0,0.24457918]
[1729683665577,0.075309,66434.0,66433.0,0.16977842]
[1729683665768,0.13458,66445.0,66433.0,0.16977842]
[1729683665769,0.075296,66446.0,66433.0,0.09447142]
[1729683665972,0.075302,66441.0,66440.0,0.075301]
[1729683668587,0.075302,66440.0,66439.0,0.07499732]
[1729683668772,0.075302,66440.0,66439.0,0.16914858]
[1729683668971,0.075302,66440.0,66439.0,0.09415126]
[1729683669582,0.03008648,66440.0,66439.0,0.09415126]
[1729683669785,0.075295,66446.0,66439.0,0.09415126]
[1729683669977,0.0753,66442.0,66441.0,0.07498974]
[1729683670474,0.075301,66441.0,66440.0,0.07498974]
[1729683670676,0.075301,66441.0,66440.0,0.1688133]
[1729683671685,0.075301,66441.0,66440.0,0.09382356]
[1729683672788,0.075302,66440.0,66439.0,0.07501157]
[1729683673080,0.075303,66439.0,66438.0,0.07501157]
[1729683673286,0.075303,66439.0,66438.0,0.16893614]
[1729683673484,0.11733001,66439.0,66428.0,0.075315]
[1729683673674,0.075314,66430.0,66429.0,0.075314]
[1729683674786,0.07531,66433.0,66432.0,0.07531]
[1729683675186,0.075306,66437.0,66432.0,0.07531]
[1729683675576,0.075306,66437.0,66428.0,0.075316]
[1729683675781,0.075306,66437.0,66433.0,0.07531]
[1729683676291,0.0309,66443.0,66430.0,0.075312]
[1729683676488,0.075309,66434.0,66428.0,0.075315]
[1729683676788,0.04197985,66433.0,66427.0,0.0307]
[1729683676988,0.075312,66431.0,66430.0,0.075313]
[1729683677187,0.11730431,66431.0,66430.0,0.075313]
[1729683678291,0.04199231,66431.0,66430.0,0.075313]
[1729683679084,0.13546631,66443.0,66430.0,0.526913]
[1729683679279,0.16677789,66442.0,66430.0,0.075313]
[1729683679481,0.04914753,66441.0,66440.0,0.075302]
[1729683679983,0.04912936,66441.0,66434.0,0.0315]
[1729683680186,0.13546631,66447.0,66443.0,0.075298]
[1729683680397,0.04912794,66446.0,66434.0,0.0315]
[1729683680595,0.075297,66444.0,66443.0,0.08952195]
[1729683680789,0.075297,66444.0,66443.0,0.1834571]
[1729683681890,0.075297,66444.0,66443.0,0.09393515]
[1729683682098,0.075297,66444.0,66443.0,0.07512252]
[1729683682496,0.075299,66443.0,66442.0,0.07512252]
[1729683682684,0.075299,66443.0,66442.0,0.16951214]
[1729683683094,0.075297,66446.0,66442.0,0.16951214]
[1729683683304,0.075297,66446.0,66434.0,0.12102195]
[1729683683305,0.075297,66446.0,66445.0,0.15041852]
[1729683683499,0.075297,66446.0,66445.0,0.24480807]
[1729683683801,0.075297,66446.0,66445.0,0.16968555]
[1729683684190,0.075297,66446.0,66445.0,0.09438955]
[1729683686399,0.0307,66452.0,66440.0,0.0319]
[1729683686606,0.075299,66445.0,66444.0,0.07511131]
[1729683686987,0.0753,66444.0,66443.0,0.07511131]
[1729683687394,0.0753,66444.0,66443.0,0.0942883]
[1729683688588,0.075301,66443.0,66442.0,0.075301]
[1729683689189,0.04196129,66443.0,66442.0,0.075301]
[1729683689384,0.11726229,66443.0,66442.0,0.075301]
[1729683690010,0.11730553,66443.0,66442.0,0.075301]
[1729683691604,0.1660775,66443.0,66442.0,0.075301]
[1729683692099,0.075303,66441.0,66440.0,0.0319]
[1729683692506,0.1660795,66441.0,66440.0,0.0319]
[1729683692805,0.1660795,66441.0,66440.0,0.107204]
[1729683693704,0.14615351,66441.0,66431.0,0.0307]
[1729683693909,0.075319,66428.0,66427.0,0.075318]
[1729683694200,0.22551324,66428.0,66427.0,0.075318]
[1729683694595,0.24412542,66428.0,66427.0,0.075318]
[1729683694799,0.14089677,66428.0,66427.0,0.10177275]
[1729683695100,0.29118745,66428.0,66427.0,0.10177275]
[1729683695605,0.15029068,66428.0,66427.0,0.31137859]
[1729683695799,0.22560868,66428.0,66427.0,0.5489853]
[1729683696197,0.15029068,66428.0,66427.0,0.44356433]
[1729683697506,0.15029068,66428.0,66427.0,0.56397568]
[1729683697710,0.15029068,66428.0,66427.0,0.44356433]
[1729683698496,0.15029068,66428.0,66427.0,0.59358596]
[1729683698710,0.15029068,66428.0,66427.0,0.44356433]
[1729683698904,0.22560868,66428.0,66427.0,0.44356433]
[1729683699499,0.22560868,66428.0,66427.0,0.56390288]
[1729683699705,0.22560868,66428.0,66427.0,0.56390183]
[1729683699901,0.15029068,66428.0,66427.0,0.44356433]
[1729683700502,0.15029068,66428.0,66427.0,0.56390231]
[1729683701217,0.22560868,66428.0,66427.0,0.56390231]
[1729683701801,0.22560868,66428.0,66427.0,0.44356433]
[1729683701995,0.075318,66428.0,66427.0,0.44356433]
[1729683702410,0.075318,66428.0,66427.0,0.56390231]
[1729683702613,0.075318,66428.0,66427.0,0.44356433]
[1729683703406,0.075318,66428.0,66427.0,0.4421628]
[1729683703610,0.075318,66428.0,66427.0,0.10177275]
[1729683705707,0.0324,66443.0,66428.0,0.075317]
[1729683705708,0.075318,66429.0,66428.0,0.075317]
[1729683707711,0.075318,66429.0,66428.0,0.10238478]
[1729683709912,0.143,66443.0,66428.0,0.10238478]
[1729683710113,0.075316,66432.0,66431.0,0.075311]
[1729683710521,0.075316,66432.0,66431.0,0.28439823]
[1729683712719,0.07531,66437.0,66436.0,0.075307]
[1729683712917,0.07531,66437.0,66436.0,0.17069518]
[1729683713314,0.07531,66437.0,66436.0,0.09538818]
[1729683713717,0.07531,66437.0,66436.0,0.17069718]
[1729683714017,0.075307,66439.0,66438.0,0.075305]
[1729683714216,0.075307,66439.0,66438.0,0.28434974]
[1729683714628,0.075307,66439.0,66438.0,0.20904474]
[1729683715614,0.075306,66439.0,66438.0,0.20904474]
[1729683717328,0.075306,66439.0,66438.0,0.0947595]
[1729683717828,0.075306,66439.0,66436.0,0.02671392]
[1729683718120,0.075306,66439.0,66435.0,0.07531]
[1729683718327,0.075309,66436.0,66435.0,0.07531]
[1729683719142,0.075309,66436.0,66435.0,0.17005595]
[1729683719342,0.075309,66436.0,66435.0,0.07531]
[1729683719631,0.075309,66436.0,66435.0,0.196689]
[1729683720221,0.075309,66436.0,66435.0,0.19665803]
[1729683721121,0.075309,66436.0,66435.0,0.02662973]
[1729683721323,0.075306,66439.0,66431.0,0.075314]
[1729683721821,0.075312,66434.0,66431.0,0.075314]
[1729683722021,0.075313,66433.0,66432.0,0.09484263]
[1729683722416,0.075313,66433.0,66432.0,0.17015563]
[1729683723535,0.075313,66433.0,66432.0,0.28307515]
[1729683723733,0.075313,66433.0,66432.0,0.17015563]
[1729683724635,0.075313,66433.0,66432.0,0.28307533]
[1729683725931,0.075313,66433.0,66432.0,0.075313]
[1729683734036,0.075313,66433.0,66432.0,0.28262275]
[1729683734229,0.075313,66433.0,66432.0,0.51886099]
[1729683735432,0.075313,66433.0,66432.0,0.41350661]
[1729683736337,0.075313,66433.0,66432.0,0.51893738]
[1729683737040,0.075313,66433.0,66432.0,0.41350661]
[1729683737430,0.075313,66433.0,66432.0,0.41242672]
[1729683740438,0.07531,66438.0,66437.0,0.075307]
[1729683740640,0.07531,66438.0,66437.0,0.28195244]
[1729683741032,0.1178644,66438.0,66437.0,0.075307]
[1729683746740,0.1178644,66438.0,66437.0,0.10273543]
[1729683746942,0.11781731,66438.0,66437.0,0.02742843]
[1729683747135,0.075309,66436.0,66435.0,0.075309]
[1729683747337,0.075309,66436.0,66433.0,0.0635]
[1729683747338,0.075311,66434.0,66433.0,0.0635]
[1729683747532,0.11781831,66434.0,66433.0,0.0908742]
[1729683748036,0.11781831,66434.0,66433.0,0.0576742]
[1729683748238,0.11781831,66434.0,66433.0,0.26383837]
[1729683748239,0.075311,66434.0,66433.0,0.26383837]
[1729683748838,0.075311,66434.0,66433.0,0.33915037]
[1729683749649,0.075311,66434.0,66433.0,0.44459375]
[1729683749948,0.075311,66434.0,66433.0,0.30885037]
[1729683750541,0.075311,66434.0,66433.0,0.41429375]
[1729683750746,0.075311,66434.0,66433.0,0.30885037]
[1729683752439,0.075308,66437.0,66436.0,0.075306]
[1729683752644,0.075308,66437.0,66436.0,0.28147017]
[1729683752837,0.0324,66443.0,66436.0,0.20616417]
[1729683753039,0.0307,66452.0,66437.0,0.20616417]
[1729683753243,0.075296,66447.0,66445.0,0.09037707]
[1729683753449,0.075296,66447.0,66446.0,0.18443171]
[1729683754139,0.075296,66447.0,66446.0,0.09405464]
[1729683756041,0.075296,66447.0,66446.0,0.18443171]
[1729683756238,0.075299,66445.0,66444.0,0.0753]
[1729683756749,0.16722871,66445.0,66444.0,0.0753]
[1729683758655,0.16722871,66445.0,66444.0,0.02669944]
[1729683758949,0.16722871,66445.0,66437.0,0.075307]
[1729683758950,0.075306,66438.0,66437.0,0.075307]
[1729683759258,0.16723571,66438.0,66437.0,0.075307]
[1729683759840,0.075311,66435.0,66434.0,0.07531]
[1729683760050,0.11785043,66435.0,66434.0,0.07531]
[1729683760652,0.04253943,66435.0,66434.0,0.07531]
[1729683760851,0.04253943,66435.0,66429.0,0.16795533]
[1729683760852,0.04236155,66435.0,66429.0,0.09263933]
[1729683761046,0.04236155,66434.0,66429.0,0.09263933]
[1729683761248,0.04235259,66433.0,66429.0,0.09263933]
[1729683761447,0.04235259,66432.0,66431.0,0.075314]
[1729683761639,0.04235259,66433.0,66432.0,0.075313]
[1729683761843,0.04235363,66433.0,66432.0,0.075313]
[1729683763149,0.075311,66434.0,66432.0,0.44201404]
[1729683763456,0.075311,66437.0,66436.0,0.075308]
[1729683763653,0.075311,66437.0,66436.0,0.28162925]
[1729683765555,0.075311,66437.0,66436.0,0.51689032]
[1729683767458,0.075311,66437.0,66436.0,0.51683231]
[1729683767851,0.075311,66437.0,66436.0,0.54420798]
[1729683768459,0.075311,66437.0,66436.0,0.43882261]
[1729683770554,0.075311,66437.0,66436.0,0.4380979]
[1729683771158,0.075311,66437.0,66436.0,0.54348895]
[1729683771359,0.075311,66437.0,66436.0,0.19648261]
[1729683775462,0.075311,66437.0,66436.0,0.2868178]
[1729683778254,0.11819471,66437.0,66436.0,0.10268367]
[1729683779066,0.075311,66437.0,66436.0,0.10268367]
[1729683780366,0.11821949,66437.0,66436.0,0.10268367]